[Event "Chess24 Legends of Chess"]
[Site "Online"]
[Date "2020.07.18"]
[Round "4.2"]
[White "Gelfand, Boris"]
[Black "Carlsen, Magnus"]
[Result "0-1"]
[ECO "D87"]
[WhiteElo "2702"]
[BlackElo "2881"]
[Annotator "ChessBase"]
[PlyCount "38"]
[EventDate "2020.07.21"]
[EventType "tourn"]
[SourceTitle "playchess.com"]
[Source "ChessBase"]
[SourceQuality "1"]
[TimeControl "900+10"]

1. d4 {[%emt 0:00:00]} Nf6 {[%emt 0:00:00]} 2. c4 {[%emt 0:00:00]} g6 {[%emt 0:00:00]} 3. Nc3 {[%emt 0:00:10]} d5 {[%emt 0:00:00]} 4. cxd5 {[%emt 0:00:01]} Nxd5 {[%emt 0:00:00]} 5. e4 {[%emt 0:00:01]} Nxc3 {[%emt 0:00:00]} 6. bxc3 {[%emt 0:00:01]} Bg7 {[%emt 0:00:00]} 7. Bc4 {[%emt 0:00:03]} c5 {[%emt 0:00:02]} 8. Ne2 {[%emt 0:00:01]} O-O {[%emt 0:00:04]} 9. O-O {[%emt 0:00:06]} Nc6 {[%emt 0:00:01]} 10. Be3 {[%emt 0:00:00]} e6 {[%emt 0:00:01]} 11. dxc5 {[%emt 0:00:18]} Qa5 {[%emt 0:00:02]} 12. f4 {[%emt 0:00:18]} Rd8 {[%emt 0:00:06]} 13. Qe1 {[%emt 0:00:44]} Bd7 {[%emt 0:03:57]} 14. Bb3 {[%emt 0:03:30]} Qc7 {[%emt 0:00:08]} 15. Nd4 {[%emt 0:01:19]} Nxd4 {[%emt 0:01:41]} 16. cxd4 {[%emt 0:00:04]} Bb5 {[%emt 0:00:02]} 17. Qf2 {[%emt 0:00:17]} Bxf1 {[%emt 0:00:10]} 18. Rxf1 {[%emt 0:00:02]} Qc6 {[%emt 0:00:35]} 19. Qf3 {[%emt 0:02:08]} Bxd4 {[%emt 0:00:10]} 0-1

[Event "Chess24 Legends of Chess"]
[Site "Online"]
[Date "2020.07.18"]
[Round "8.2"]
[White "Carlsen, Magnus"]
[Black "Nepomniachtchi, Ian"]
[Result "1-0"]
[ECO "D85"]
[WhiteElo "2881"]
[BlackElo "2778"]
[Annotator "ChessBase"]
[PlyCount "67"]
[EventDate "2020.07.21"]
[EventType "tourn"]
[SourceTitle "playchess.com"]
[Source "ChessBase"]
[SourceQuality "1"]
[TimeControl "900+10"]

1. d4 {[%emt 0:00:00]} Nf6 {[%emt 0:00:00]} 2. c4 {[%emt 0:00:00]} g6 {[%emt 0:00:00]} 3. Nc3 {[%emt 0:00:00]} d5 {[%emt 0:00:00]} 4. Nf3 {[%emt 0:00:00]} Bg7 {[%emt 0:00:00]} 5. cxd5 {[%emt 0:00:00]} Nxd5 {[%emt 0:00:00]} 6. e4 {[%emt 0:00:00]} Nxc3 {[%emt 0:00:00]} 7. bxc3 {[%emt 0:00:00]} c5 {[%emt 0:00:01]} 8. Rb1 {[%emt 0:00:00]} O-O {[%emt 0:00:04]} 9. Be2 {[%emt 0:00:01]} cxd4 {[%emt 0:00:32]} 10. cxd4 {[%emt 0:00:02]} Qa5+ {[%emt 0:00:01]} 11. Bd2 {[%emt 0:00:01]} Qxa2 {[%emt 0:00:03]} 12. O-O {[%emt 0:00:00]} Bg4 {[%emt 0:00:14]} 13. Be3 {[%emt 0:00:07]} Nc6 {[%emt 0:00:15]} 14. d5 {[%emt 0:00:05]} Na5 {[%emt 0:00:22]} 15. Bg5 {[%emt 0:00:04]} Qa3 {[%emt 0:00:54]} 16. Re1 {[%emt 0:00:05]} Bc3 {[%emt 0:01:32]} 17. Qd3 {[%emt 0:02:28]} Rfc8 {[%emt 0:00:03]} 18. Red1 {[%emt 0:03:57]} b6 {[%emt 0:00:37]} 19. h3 {[%emt 0:00:36]} Bd7 {[%emt 0:00:47]} 20. Rdc1 {[%emt 0:03:13]} f6 {[%emt 0:02:14]} 21. Bd2 {[%emt 0:00:59]} Bb2 {[%emt 0:00:02]} 22. Rxc8+ {[%emt 0:00:16]} Rxc8 {[%emt 0:00:00]} 23. Qa6 {[%emt 0:00:37]} Qa2 {[%emt 0:02:07]} 24. Rxb2 {[%emt 0:01:28]} Qxb2 {[%emt 0:00:03]} 25. Qxa7 {[%emt 0:00:01]} Qa1+ {[%emt 0:00:02]} 26. Kh2 {[%emt 0:00:59]} Qa4 {[%emt 0:00:01]} 27. Bd1 {[%emt 0:00:11]} Qxd1 {[%emt 0:00:19]} 28. Qxd7 {[%emt 0:00:02]} Qc2 {[%emt 0:00:03]} 29. Qe6+ {[%emt 0:00:29]} Kh8 {[%emt 0:00:13]} 30. d6 {[%emt 0:01:14]} exd6 {[%emt 0:04:15]} 31. Qxf6+ {[%emt 0:00:07]} Kg8 {[%emt 0:00:02]} 32. Bh6 {[%emt 0:00:23]} Qc7 {[%emt 0:00:11]} 33. Qe6+ {[%emt 0:00:01]} Kh8 {[%emt 0:01:06]} 34. Ng5 {[%emt 0:00:00]} 1-0

[Event "Chess24 Legends of Chess"]
[Site "Online"]
[Date "2020.07.18"]
[Round "9.3"]
[White "Carlsen, Magnus"]
[Black "Kramnik, Vladimir"]
[Result "1-0"]
[ECO "D35"]
[WhiteElo "2881"]
[BlackElo "2756"]
[Annotator "ChessBase"]
[PlyCount "123"]
[EventDate "2020.07.21"]
[EventType "tourn"]
[SourceTitle "playchess.com"]
[Source "ChessBase"]
[SourceQuality "1"]
[TimeControl "900+10"]

1. d4 {[%emt 0:00:00]} Nf6 {[%emt 0:00:00]} 2. c4 {[%emt 0:00:00]} e6 {[%emt 0:00:00]} 3. Nc3 {[%emt 0:00:00]} d5 {[%emt 0:00:00]} 4. cxd5 {[%emt 0:00:00]} exd5 {[%emt 0:00:00]} 5. Bg5 {[%emt 0:00:00]} c6 {[%emt 0:00:00]} 6. e3 {[%emt 0:00:01]} h6 {[%emt 0:00:00]} 7. Bh4 {[%emt 0:00:01]} Be7 {[%emt 0:00:00]} 8. Bd3 {[%emt 0:00:25]} O-O {[%emt 0:00:02]} 9. Nge2 {[%emt 0:00:04]} Re8 {[%emt 0:00:02]} 10. O-O {[%emt 0:00:28]} Nh5 {[%emt 0:00:04]} 11. Bxe7 {[%emt 0:00:02]} Qxe7 {[%emt 0:00:01]} 12. Qd2 {[%emt 0:00:22]} Nd7 {[%emt 0:00:08]} 13. Rae1 {[%emt 0:00:03]} Nf8 {[%emt 0:00:27]} 14. Nc1 {[%emt 0:00:44]} Nf6 {[%emt 0:02:57]} 15. f3 {[%emt 0:00:08]} Ne6 {[%emt 0:00:03]} 16. N1e2 {[%emt 0:01:04]} b5 {[%emt 0:02:19]} 17. Ng3 {[%emt 0:01:41]} a5 {[%emt 0:00:21]} 18. Qf2 {[%emt 0:01:15]} Ba6 {[%emt 0:00:24]} 19. Nf5 {[%emt 0:00:14]} Qd8 {[%emt 0:00:53]} 20. Ne2 {[%emt 0:01:39]} c5 {[%emt 0:00:57]} 21. Qg3 {[%emt 0:00:15]} c4 {[%emt 0:01:48]} 22. Bc2 {[%emt 0:00:07]} Nh5 {[%emt 0:01:52]} 23. Qh3 {[%emt 0:02:20]} g6 {[%emt 0:00:46]} 24. Nxh6+ {[%emt 0:00:04]} Kg7 {[%emt 0:00:59]} 25. Nf5+ {[%emt 0:00:04]} Kg8 {[%emt 0:00:56]} 26. Neg3 {[%emt 0:03:50]} Nxg3 {[%emt 0:01:21]} 27. Qxg3 {[%emt 0:00:04]} b4 {[%emt 0:00:16]} 28. Nh6+ {[%emt 0:00:31]} Kg7 {[%emt 0:00:13]} 29. Nxf7 {[%emt 0:00:01]} Kxf7 {[%emt 0:00:11]} 30. Bxg6+ {[%emt 0:00:01]} Ke7 {[%emt 0:00:05]} 31. Bxe8 {[%emt 0:00:01]} Kxe8 {[%emt 0:01:20]} 32. e4 {[%emt 0:00:13]} c3 {[%emt 0:00:27]} 33. Rf2 {[%emt 0:01:49]} Kf7 {[%emt 0:00:02]} 34. bxc3 {[%emt 0:00:07]} bxc3 {[%emt 0:00:02]} 35. f4 {[%emt 0:00:25]} dxe4 {[%emt 0:00:49]} 36. f5 {[%emt 0:00:02]} Nf8 {[%emt 0:00:17]} 37. Rxe4 {[%emt 0:00:45]} Rb8 {[%emt 0:00:43]} 38. h3 {[%emt 0:00:20]} Rb1+ {[%emt 0:00:03]} 39. Kh2 {[%emt 0:00:01]} Qb8 {[%emt 0:00:22]} 40. Qxb8 {[%emt 0:00:12]} Rxb8 {[%emt 0:00:02]} 41. Re3 {[%emt 0:00:00]} Bc4 {[%emt 0:00:22]} 42. Rxc3 {[%emt 0:00:02]} Bd5 {[%emt 0:00:08]} 43. Rc5 {[%emt 0:00:03]} Rd8 {[%emt 0:00:01]} 44. Rxa5 {[%emt 0:00:02]} Rd7 {[%emt 0:00:18]} 45. g4 {[%emt 0:00:14]} Nh7 {[%emt 0:00:01]} 46. Kg3 {[%emt 0:00:02]} Nf6 {[%emt 0:00:01]} 47. Rc2 {[%emt 0:00:29]} Re7 {[%emt 0:00:28]} 48. Kh4 {[%emt 0:00:14]} Be4 {[%emt 0:00:07]} 49. Rb2 {[%emt 0:00:14]} Nd5 {[%emt 0:00:08]} 50. Kg5 {[%emt 0:00:02]} Rd7 {[%emt 0:00:13]} 51. Ra6 {[%emt 0:00:09]} Rc7 {[%emt 0:00:13]} 52. Re6 {[%emt 0:00:06]} Nc3 {[%emt 0:00:10]} 53. Rf6+ {[%emt 0:00:20]} Kg7 {[%emt 0:00:05]} 54. Rg6+ {[%emt 0:00:03]} Kf7 {[%emt 0:00:01]} 55. Kh6 {[%emt 0:00:03]} Rc8 {[%emt 0:00:21]} 56. Rg7+ {[%emt 0:00:02]} Kf8 {[%emt 0:00:02]} 57. Rb6 {[%emt 0:00:26]} Bd5 {[%emt 0:00:13]} 58. Rh7 {[%emt 0:00:18]} Ne4 {[%emt 0:00:22]} 59. Rh8+ {[%emt 0:00:11]} Bg8 {[%emt 0:00:02]} 60. Rg6 {[%emt 0:00:01]} Kf7 {[%emt 0:00:13]} 61. Rg7+ {[%emt 0:00:01]} Kf6 {[%emt 0:00:04]} 62. Rhxg8 {[%emt 0:00:03]} 1-0

[Event "Chess24 Legends of Chess"]
[Site "Online"]
[Date "2020.07.18"]
[Round "9.4"]
[White "Nepomniachtchi, Ian"]
[Black "Gelfand, Boris"]
[Result "1/2-1/2"]
[ECO "B31"]
[WhiteElo "2778"]
[BlackElo "2702"]
[Annotator "ChessBase"]
[PlyCount "47"]
[EventDate "2020.07.21"]
[EventType "tourn"]
[SourceTitle "playchess.com"]
[Source "ChessBase"]
[SourceQuality "1"]
[TimeControl "900+10"]

1. e4 {[%emt 0:00:00]} c5 {[%emt 0:00:00]} 2. Na3 {[%emt 0:00:00]} Nc6 {[%emt 0:00:03]} 3. Bb5 {[%emt 0:00:00]} g6 {[%emt 0:00:04]} 4. Nf3 {[%emt 0:00:00]} Bg7 {[%emt 0:00:01]} 5. O-O {[%emt 0:00:05]} Nf6 {[%emt 0:01:17]} 6. Bxc6 {[%emt 0:00:04]} bxc6 {[%emt 0:00:06]} 7. e5 {[%emt 0:00:04]} Nd5 {[%emt 0:00:01]} 8. Re1 {[%emt 0:00:07]} O-O {[%emt 0:00:04]} 9. d3 {[%emt 0:00:11]} f6 {[%emt 0:00:44]} 10. Nc4 {[%emt 0:01:45]} fxe5 {[%emt 0:00:42]} 11. Nfxe5 {[%emt 0:00:02]} Qc7 {[%emt 0:00:59]} 12. Ng4 {[%emt 0:00:55]} d6 {[%emt 0:00:10]} 13. Bg5 {[%emt 0:01:09]} e5 {[%emt 0:00:25]} 14. h3 {[%emt 0:00:24]} Nf4 {[%emt 0:00:54]} 15. Nd2 {[%emt 0:00:28]} Rb8 {[%emt 0:02:19]} 16. b3 {[%emt 0:00:09]} Bf5 {[%emt 0:00:15]} 17. Ne4 {[%emt 0:00:08]} Ne6 {[%emt 0:00:51]} 18. Bh6 {[%emt 0:00:37]} Nf4 {[%emt 0:00:38]} 19. Bg5 {[%emt 0:01:19]} Kh8 {[%emt 0:00:08]} 20. Qd2 {[%emt 0:00:14]} Qd7 {[%emt 0:00:33]} 21. Ngf6 {[%emt 0:01:03]} Qc7 {[%emt 0:00:43]} 22. Ng4 {[%emt 0:00:03]} Qd7 {[%emt 0:00:52]} 23. Ngf6 {[%emt 0:00:02]} Qc7 {[%emt 0:00:01]} 24. Ng4 {[%emt 0:00:09]} 1/2-1/2

[Event "Chess24 Legends of Chess"]
[Site "Online"]
[Date "2020.07.18"]
[Round "9.4"]
[White "Kramnik, Vladimir"]
[Black "Carlsen, Magnus"]
[Result "0-1"]
[ECO "B87"]
[WhiteElo "2756"]
[BlackElo "2881"]
[Annotator "ChessBase"]
[PlyCount "48"]
[EventDate "2020.07.21"]
[EventType "tourn"]
[SourceTitle "playchess.com"]
[Source "ChessBase"]
[SourceQuality "1"]
[TimeControl "900+10"]

1. e4 {[%emt 0:00:00]} c5 {[%emt 0:00:00]} 2. Nf3 {[%emt 0:00:00]} d6 {[%emt 0:00:00]} 3. d4 {[%emt 0:00:00]} cxd4 {[%emt 0:00:00]} 4. Nxd4 {[%emt 0:00:00]} Nf6 {[%emt 0:00:00]} 5. Nc3 {[%emt 0:00:00]} a6 {[%emt 0:00:00]} 6. Bc4 {[%emt 0:00:00]} b5 {[%emt 0:00:15]} 7. Bb3 {[%emt 0:00:07]} e6 {[%emt 0:00:04]} 8. Be3 {[%emt 0:00:05]} Be7 {[%emt 0:00:27]} 9. Qe2 {[%emt 0:00:06]} O-O {[%emt 0:00:28]} 10. f3 {[%emt 0:00:04]} Qc7 {[%emt 0:00:53]} 11. g4 {[%emt 0:00:03]} Nc6 {[%emt 0:00:07]} 12. Nxc6 {[%emt 0:00:18]} Qxc6 {[%emt 0:00:01]} 13. g5 {[%emt 0:00:06]} Nd7 {[%emt 0:00:05]} 14. h4 {[%emt 0:00:10]} Nc5 {[%emt 0:00:14]} 15. h5 {[%emt 0:00:33]} Rb8 {[%emt 0:00:07]} 16. g6 {[%emt 0:01:42]} h6 {[%emt 0:01:47]} 17. Nd5 {[%emt 0:02:53]} exd5 {[%emt 0:00:21]} 18. Bxd5 {[%emt 0:00:04]} Qe8 {[%emt 0:00:02]} 19. Bxh6 {[%emt 0:03:58]} gxh6 {[%emt 0:00:39]} 20. Rg1 {[%emt 0:03:21]} Bh4+ {[%emt 0:00:07]} 21. Kd1 {[%emt 0:00:23]} Qe5 {[%emt 0:00:01]} 22. c3 {[%emt 0:01:31]} Be6 {[%emt 0:00:03]} 23. f4 {[%emt 0:00:43]} Qxf4 {[%emt 0:00:03]} 24. gxf7+ {[%emt 0:01:03]} Kh7 {[%emt 0:00:06]} 0-1

[Event "Chess24 Legends of Chess"]
[Site "Online"]
[Date "2020.07.18"]
[Round "9.5"]
[White "Anand, Viswanathan"]
[Black "Ivanchuk, Vasyl"]
[Result "1/2-1/2"]
[ECO "D37"]
[WhiteElo "2751"]
[BlackElo "2686"]
[Annotator "ChessBase"]
[PlyCount "118"]
[EventDate "2020.07.21"]
[EventType "tourn"]
[SourceTitle "playchess.com"]
[Source "ChessBase"]
[SourceQuality "1"]
[TimeControl "900+10"]

1. d4 {[%emt 0:10:10]} Nf6 {[%emt 0:11:10]} 2. c4 {[%emt 0:00:12]} e6 {[%emt 0:00:11]} 3. Nf3 {[%emt 0:00:12]} d5 {[%emt 0:00:12]} 4. Nc3 {[%emt 0:00:11]} Nbd7 {[%emt 0:00:11]} 5. Bf4 {[%emt 0:00:23]} dxc4 {[%emt 0:00:12]} 6. e3 {[%emt 0:00:12]} Nd5 {[%emt 0:00:12]} 7. Bxc4 {[%emt 0:00:13]} Nxf4 {[%emt 0:00:12]} 8. exf4 {[%emt 0:00:12]} Nb6 {[%emt 0:00:11]} 9. Bb3 {[%emt 0:00:13]} g6 {[%emt 0:00:11]} 10. Qe2 {[%emt 0:00:24]} Bg7 {[%emt 0:00:16]} 11. Rd1 {[%emt 0:00:16]} O-O {[%emt 0:00:14]} 12. h4 {[%emt 0:00:12]} Nd5 {[%emt 0:00:15]} 13. g3 {[%emt 0:00:15]} Nxc3 {[%emt 0:00:24]} 14. bxc3 {[%emt 0:00:12]} c5 {[%emt 0:00:11]} 15. h5 {[%emt 0:00:13]} cxd4 {[%emt 0:00:13]} 16. cxd4 {[%emt 0:00:12]} Bd7 {[%emt 0:00:18]} 17. Ne5 {[%emt 0:00:27]} Qa5+ {[%emt 0:00:11]} 18. Qd2 {[%emt 0:00:31]} Qxd2+ {[%emt 0:00:12]} 19. Kxd2 {[%emt 0:00:13]} Rad8 {[%emt 0:00:16]} 20. Ke3 {[%emt 0:00:29]} Bc6 {[%emt 0:00:11]} 21. f3 {[%emt 0:00:17]} Rd6 {[%emt 0:00:22]} 22. h6 {[%emt 0:00:12]} Bf6 {[%emt 0:00:12]} 23. Rd2 {[%emt 0:00:12]} Rfd8 {[%emt 0:00:14]} 24. Rc1 {[%emt 0:00:17]} Kf8 {[%emt 0:00:17]} 25. Bc2 {[%emt 0:00:15]} Ke8 {[%emt 0:00:26]} 26. Be4 {[%emt 0:00:12]} Be7 {[%emt 0:00:41]} 27. Bxc6+ {[%emt 0:00:14]} bxc6 {[%emt 0:00:12]} 28. Nxc6 {[%emt 0:00:12]} Rc8 {[%emt 0:00:14]} 29. Rdc2 {[%emt 0:00:12]} Bf8 {[%emt 0:00:12]} 30. Nxa7 {[%emt 0:00:15]} Rxc2 {[%emt 0:00:13]} 31. Rxc2 {[%emt 0:00:11]} Bxh6 {[%emt 0:00:11]} 32. Nb5 {[%emt 0:00:13]} Rb6 {[%emt 0:00:11]} 33. a4 {[%emt 0:00:12]} g5 {[%emt 0:00:12]} 34. fxg5 {[%emt 0:00:24]} Bxg5+ {[%emt 0:00:12]} 35. Kd3 {[%emt 0:00:12]} Bd8 {[%emt 0:00:13]} 36. Kc4 {[%emt 0:00:17]} Rc6+ {[%emt 0:00:39]} 37. Kd3 {[%emt 0:00:12]} Ra6 {[%emt 0:00:14]} 38. Rc4 {[%emt 0:00:15]} h5 {[%emt 0:00:12]} 39. Ke4 {[%emt 0:00:14]} Kd7 {[%emt 0:00:12]} 40. f4 {[%emt 0:00:17]} h4 {[%emt 0:00:16]} 41. gxh4 {[%emt 0:00:12]} Bxh4 {[%emt 0:00:11]} 42. Rc7+ {[%emt 0:00:11]} Ke8 {[%emt 0:00:13]} 43. Ra7 {[%emt 0:00:11]} Rxa7 {[%emt 0:00:12]} 44. Nxa7 {[%emt 0:00:12]} Kd7 {[%emt 0:00:11]} 45. d5 {[%emt 0:00:18]} Bd8 {[%emt 0:00:13]} 46. Nc6 {[%emt 0:00:18]} f5+ {[%emt 0:00:14]} 47. Kd4 {[%emt 0:00:14]} Bb6+ {[%emt 0:00:11]} 48. Kc4 {[%emt 0:00:11]} Be3 {[%emt 0:00:13]} 49. Ne5+ {[%emt 0:00:15]} Kd6 {[%emt 0:00:11]} 50. Nd3 {[%emt 0:00:13]} exd5+ {[%emt 0:00:13]} 51. Kb5 {[%emt 0:00:12]} Kc7 {[%emt 0:00:11]} 52. a5 {[%emt 0:00:12]} Kb7 {[%emt 0:00:11]} 53. a6+ {[%emt 0:00:13]} Ka7 {[%emt 0:00:11]} 54. Nb4 {[%emt 0:00:12]} Bxf4 {[%emt 0:00:12]} 55. Nxd5 {[%emt 0:00:11]} Bh2 {[%emt 0:00:12]} 56. Ka5 {[%emt 0:00:17]} f4 {[%emt 0:00:11]} 57. Nxf4 {[%emt 0:00:11]} Bxf4 {[%emt 0:00:12]} 58. Kb5 {[%emt 0:00:12]} Bc7 {[%emt 0:00:11]} 59. Kc6 {[%emt 0:00:12]} Kxa6 {[%emt 0:00:11]} 1/2-1/2